[Event "EYCC Open-U14 2019"]
[Site "Bratislava"]
[Date "2019.08.09"]
[Round "8.10"]
[White "Yaniv, Yuval"]
[Black "Grigoryan, Aram"]
[Result "1/2-1/2"]
[ECO "A45"]
[WhiteElo "2135"]
[BlackElo "1947"]
[Annotator "NA"]
[PlyCount "193"]
[EventDate "2019.08.02"]
[EventType "swiss"]
[EventCountry "SVK"]
[SourceTitle "playchess.com"]
[Source "ChessBase"]
[SourceQuality "1"]
[TimeControl "40/5400+30:1800+30"]

1. d4 {[%emt 0:00:00]} Nf6 {[%emt 0:00:00]} 2. Bg5 {[%emt 0:00:54]} Ne4 {[%emt 0:01:23]} 3. Bf4 {[%emt 0:01:01]} d5 {[%emt 0:00:46]} 4. e3 {[%emt 0:01:42]} c5 {[%emt 0:03:43]} 5. Bd3 {[%emt 0:02:21]} Nc6 {[%emt 0:06:25]} 6. Bxe4 {[%emt 0:07:18]} dxe4 {[%emt 0:00:06]} 7. d5 {[%emt 0:00:30]} Nb4 {[%emt 0:01:00]} 8. Nc3 {[%emt 0:00:25]} e6 {[%emt 0:02:34]} 9. d6 {[%emt 0:18:48]} Qa5 {[%emt 0:02:48]} 10. Qd2 {[%emt 0:00:45]} Nd5 {[%emt 0:01:14]} 11. O-O-O {[%emt 0:02:36]} b6 {[%emt 0:12:17]} 12. Nxd5 {[%emt 0:09:54]} Qxd2+ {[%emt 0:04:58]} 13. Rxd2 {[%emt 0:00:02]} exd5 {[%emt 0:00:06]} 14. Rxd5 {[%emt 0:00:26]} Be6 {[%emt 0:03:22]} 15. Rd2 {[%emt 0:01:05]} Kd7 {[%emt 0:08:17]} 16. Ne2 {[%emt 0:02:40]} Kc6 {[%emt 0:00:42]} 17. h3 {[%emt 0:03:56]} Rd8 {[%emt 0:03:06]} 18. Rhd1 {[%emt 0:00:14]} h6 {[%emt 0:03:36]} 19. Nc3 {[%emt 0:03:09]} f5 {[%emt 0:01:25]} 20. a4 {[%emt 0:08:06]} Rh7 {[%emt 0:04:00]} 21. Nd5 {[%emt 0:06:42]} Bxd5 {[%emt 0:02:02]} 22. Rxd5 {[%emt 0:00:10]} g5 {[%emt 0:03:21]} 23. Be5 {[%emt 0:10:11]} Rhd7 {[%emt 0:04:18]} 24. R1d2 {[%emt 0:01:53]} Bxd6 {[%emt 0:02:15]} 25. Bf6 {[%emt 0:00:23]} Bf8 {[%emt 0:03:32]} 26. Rxd7 {[%emt 0:05:22]} Rxd7 {[%emt 0:00:01]} 27. Rxd7 {[%emt 0:00:01]} Kxd7 {[%emt 0:00:01]} 28. g4 {[%emt 0:01:23]} Ke6 {[%emt 0:03:09]} 29. Bc3 {[%emt 0:00:29]} Bd6 {[%emt 0:00:06]} 30. Kd2 {[%emt 0:03:31]} fxg4 {[%emt 0:09:26]} 31. hxg4 {[%emt 0:00:01]} Kf7 {[%emt 0:00:05]} 32. Ke2 {[%emt 0:00:45]} Kg6 {[%emt 0:00:04]} 33. b3 {[%emt 0:00:58]} h5 {[%emt 0:00:56]} 34. gxh5+ {[%emt 0:00:04]} Kxh5 {[%emt 0:00:02]} 35. Bf6 {[%emt 0:00:34]} Kg6 {[%emt 0:01:01]} 36. Bd8 {[%emt 0:00:10]} Kf5 {[%emt 0:01:29]} 37. a5 {[%emt 0:00:57]} bxa5 {[%emt 0:00:09]} 38. Bxa5 {[%emt 0:00:09]} g4 {[%emt 0:00:03]} 39. Bd8 {[%emt 0:00:15]} Ke5 {[%emt 0:00:56]} 40. Kf1 {[%emt 0:00:00]} Kd5 {[%emt 0:00:00]} 41. c4+ {[%emt 0:01:15]} Ke6 {[%emt 0:00:57]} 42. Kg2 {[%emt 0:00:14]} Kf5 {[%emt 0:00:04]} 43. Bh4 {[%emt 0:00:09]} a6 {[%emt 0:01:10]} 44. Kf1 {[%emt 0:01:12]} Ke6 {[%emt 0:00:51]} 45. Ke2 {[%emt 0:01:14]} Bc7 {[%emt 0:00:18]} 46. Kd2 {[%emt 0:01:37]} Ba5+ {[%emt 0:00:04]} 47. Kc2 {[%emt 0:00:22]} Bb4 {[%emt 0:00:11]} 48. Kd1 {[%emt 0:00:15]} Ba5 {[%emt 0:00:05]} 49. Bg3 {[%emt 0:00:06]} Bc3 {[%emt 0:01:04]} 50. Ke2 {[%emt 0:02:35]} Be5 {[%emt 0:00:30]} 51. Bh4 {[%emt 0:00:36]} Bf6 {[%emt 0:00:06]} 52. Bg3 {[%emt 0:00:52]} Be5 {[%emt 0:00:05]} 53. Bxe5 {[%emt 0:03:26]} Kxe5 {[%emt 0:00:04]} 54. Kf1 {[%emt 0:00:06]} Kf5 {[%emt 0:00:03]} 55. Kg2 {[%emt 0:00:05]} Kg6 {[%emt 0:00:18]} 56. Kg3 {[%emt 0:00:21]} Kg5 {[%emt 0:00:04]} 57. Kg2 {[%emt 0:00:22]} Kh4 {[%emt 0:00:12]} 58. b4 {[%emt 0:05:31]} cxb4 {[%emt 0:00:04]} 59. c5 {[%emt 0:00:03]} b3 {[%emt 0:00:08]} 60. c6 {[%emt 0:00:03]} b2 {[%emt 0:00:03]} 61. c7 {[%emt 0:00:03]} b1=Q {[%emt 0:00:39]} 62. c8=Q {[%emt 0:00:05]} Qb5 {[%emt 0:03:11]} 63. Qd8+ {[%emt 0:00:50]} Kh5 {[%emt 0:00:10]} 64. Qh8+ {[%emt 0:00:10]} Kg5 {[%emt 0:00:08]} 65. Qg7+ {[%emt 0:00:23]} Kf5 {[%emt 0:00:06]} 66. Qf7+ {[%emt 0:00:06]} Kg5 {[%emt 0:00:12]} 67. Qf4+ {[%emt 0:00:19]} Kh5 {[%emt 0:00:15]} 68. Kg3 {[%emt 0:03:10]} Qg5 {[%emt 0:00:31]} 69. Qxe4 {[%emt 0:00:22]} Qh4+ {[%emt 0:00:16]} 70. Kg2 {[%emt 0:00:09]} Qh3+ {[%emt 0:00:06]} 71. Kg1 {[%emt 0:00:07]} Qf3 {[%emt 0:01:20]} 72. Qe8+ {[%emt 0:01:11]} Kg5 {[%emt 0:00:22]} 73. Qg8+ {[%emt 0:00:38]} Kh5 {[%emt 0:00:10]} 74. Qh7+ {[%emt 0:00:46]} Kg5 {[%emt 0:00:05]} 75. Qg7+ {[%emt 0:00:09]} Kh5 {[%emt 0:00:05]} 76. Qe5+ {[%emt 0:00:05]} Kh4 {[%emt 0:00:14]} 77. Qe7+ {[%emt 0:01:27]} Kh5 {[%emt 0:00:05]} 78. Qe8+ {[%emt 0:06:33]} Kg5 {[%emt 0:00:08]} 79. Qd8+ {[%emt 0:00:29]} Kh5 {[%emt 0:00:08]} 80. Qa5+ {[%emt 0:00:10]} Kh4 {[%emt 0:00:45]} 81. Qd8+ {[%emt 0:01:57]} Kh5 {[%emt 0:00:09]} 82. Qa5+ {[%emt 0:00:02]} Kh4 {[%emt 0:00:04]} 83. Qxa6 {[%emt 0:00:26]} g3 {[%emt 0:00:07]} 84. Qh6+ {[%emt 0:00:49]} Kg4 {[%emt 0:00:07]} 85. Qg7+ {[%emt 0:02:06]} Kh4 {[%emt 0:00:44]} 86. Qd4+ {[%emt 0:00:19]} Kh3 {[%emt 0:00:20]} 87. Qd7+ {[%emt 0:00:29]} Kh4 {[%emt 0:00:04]} 88. Qe7+ {[%emt 0:02:28]} Kh3 {[%emt 0:00:06]} 89. Qe6+ {[%emt 0:00:17]} Kh4 {[%emt 0:00:07]} 90. fxg3+ {[%emt 0:01:22]} Kxg3 {[%emt 0:00:28]} 91. Qe5+ {[%emt 0:01:39]} Kg4 {[%emt 0:00:09]} 92. e4 {[%emt 0:03:32]} Qd1+ {[%emt 0:00:30]} 93. Kf2 {[%emt 0:00:10]} Qd2+ {[%emt 0:00:01]} 94. Kg1 {[%emt 0:00:11]} Qe1+ {[%emt 0:00:04]} 95. Kg2 {[%emt 0:00:07]} Qe2+ {[%emt 0:00:02]} 96. Kg1 {[%emt 0:00:06]} Qe1+ {[%emt 0:00:03]} 97. Kg2 {[%emt 0:00:06]} 1/2-1/2

[Event "EYCC Open-U14 2019"]
[Site "Bratislava"]
[Date "2019.08.09"]
[Round "8.11"]
[White "Kristoferitsch, Daniel"]
[Black "Sokolovsky, Yahli"]
[Result "0-1"]
[ECO "E97"]
[WhiteElo "2108"]
[BlackElo "2093"]
[Annotator "NA"]
[PlyCount "126"]
[EventDate "2019.08.02"]
[EventType "swiss"]
[EventCountry "SVK"]
[SourceTitle "playchess.com"]
[Source "ChessBase"]
[SourceQuality "1"]
[TimeControl "40/5400+30:1800+30"]

1. d4 {[%emt 0:00:00]} Nf6 {[%emt 0:00:00]} 2. c4 {[%emt 0:00:00]} g6 {[%emt 0:00:00]} 3. Nc3 {[%emt 0:00:00]} Bg7 {[%emt 0:00:00]} 4. e4 {[%emt 0:00:00]} d6 {[%emt 0:00:00]} 5. Nf3 {[%emt 0:00:00]} O-O {[%emt 0:00:00]} 6. Be2 {[%emt 0:00:05]} e5 {[%emt 0:00:04]} 7. O-O {[%emt 0:00:08]} Nc6 {[%emt 0:00:06]} 8. d5 {[%emt 0:00:06]} Ne7 {[%emt 0:00:08]} 9. b4 {[%emt 0:00:05]} a5 {[%emt 0:00:20]} 10. Ba3 {[%emt 0:00:07]} axb4 {[%emt 0:00:54]} 11. Bxb4 {[%emt 0:00:07]} b6 {[%emt 0:05:42]} 12. a4 {[%emt 0:00:07]} Re8 {[%emt 0:00:36]} 13. Re1 {[%emt 0:16:01]} Bf8 {[%emt 0:01:11]} 14. Bf1 {[%emt 0:03:09]} c5 {[%emt 0:00:32]} 15. Ba3 {[%emt 0:00:58]} Bg7 {[%emt 0:01:35]} 16. Bb2 {[%emt 0:12:02]} Rf8 {[%emt 0:03:21]} 17. Nb5 {[%emt 0:00:12]} Ne8 {[%emt 0:05:57]} 18. Bc3 {[%emt 0:05:18]} h6 {[%emt 0:05:23]} 19. a5 {[%emt 0:07:55]} bxa5 {[%emt 0:03:38]} 20. Qa4 {[%emt 0:00:32]} f5 {[%emt 0:06:56]} 21. Bxa5 {[%emt 0:00:08]} Qd7 {[%emt 0:00:22]} 22. Nc3 {[%emt 0:06:37]} Qxa4 {[%emt 0:16:53]} 23. Rxa4 {[%emt 0:00:15]} Nf6 {[%emt 0:01:18]} 24. Nd2 {[%emt 0:13:15]} Bd7 {[%emt 0:07:04]} 25. Raa1 {[%emt 0:00:25]} Ra7 {[%emt 0:05:33]} 26. Nb5 {[%emt 0:09:49]} Bxb5 {[%emt 0:09:01]} 27. cxb5 {[%emt 0:00:07]} Nxe4 {[%emt 0:02:51]} 28. Nxe4 {[%emt 0:04:45]} fxe4 {[%emt 0:01:33]} 29. b6 {[%emt 0:00:17]} Raa8 {[%emt 0:00:27]} 30. Bb5 {[%emt 0:12:59]} Rfb8 {[%emt 0:02:42]} 31. Reb1 {[%emt 0:03:54]} Rxa5 {[%emt 0:12:28]} 32. Rxa5 {[%emt 0:00:10]} Rxb6 {[%emt 0:00:07]} 33. Ra6 {[%emt 0:00:28]} Rb8 {[%emt 0:05:22]} 34. Rxd6 {[%emt 0:04:45]} c4 {[%emt 0:00:01]} 35. Rc6 {[%emt 0:01:48]} Nxc6 {[%emt 0:01:02]} 36. dxc6 {[%emt 0:00:01]} Kh7 {[%emt 0:01:43]} 37. Kf1 {[%emt 0:01:18]} c3 {[%emt 0:01:08]} 38. c7 {[%emt 0:00:15]} Rc8 {[%emt 0:00:52]} 39. Bc6 {[%emt 0:00:41]} Rxc7 {[%emt 0:00:28]} 40. Bxe4 {[%emt 0:00:00]} h5 {[%emt 0:00:00]} 41. Ke2 {[%emt 0:17:47]} Bh6 {[%emt 0:05:46]} 42. Kd1 {[%emt 0:00:10]} Rc4 {[%emt 0:08:25]} 43. Bd3 {[%emt 0:02:43]} Rd4 {[%emt 0:01:02]} 44. Kc2 {[%emt 0:00:09]} e4 {[%emt 0:00:30]} 45. Bf1 {[%emt 0:00:05]} Bd2 {[%emt 0:02:39]} 46. Bb5 {[%emt 0:02:11]} Rd6 {[%emt 0:01:02]} 47. Rb4 {[%emt 0:02:22]} Rb6 {[%emt 0:00:14]} 48. Rb1 {[%emt 0:00:43]} Rf6 {[%emt 0:00:16]} 49. Rf1 {[%emt 0:01:01]} Kg7 {[%emt 0:01:07]} 50. Bc4 {[%emt 0:02:28]} Rf5 {[%emt 0:01:04]} 51. Ba6 {[%emt 0:01:44]} Kf6 {[%emt 0:02:03]} 52. Bc4 {[%emt 0:01:40]} Ke5 {[%emt 0:00:45]} 53. h3 {[%emt 0:00:23]} Kd4 {[%emt 0:00:48]} 54. Bb3 {[%emt 0:00:54]} h4 {[%emt 0:00:44]} 55. Be6 {[%emt 0:00:33]} Rf6 {[%emt 0:00:25]} 56. Bb3 {[%emt 0:01:16]} Kc5 {[%emt 0:02:07]} 57. Kd1 {[%emt 0:01:10]} Kd4 {[%emt 0:00:28]} 58. Kc2 {[%emt 0:00:50]} Rf8 {[%emt 0:00:54]} 59. Ba2 {[%emt 0:00:18]} Kc5 {[%emt 0:00:45]} 60. Kd1 {[%emt 0:01:15]} Rb8 {[%emt 0:01:34]} 61. Ke2 {[%emt 0:00:39]} Rb2 {[%emt 0:00:23]} 62. Bf7 {[%emt 0:00:38]} Bf4+ {[%emt 0:00:28]} 63. Kd1 {[%emt 0:00:12]} c2+ {[%emt 0:00:20]} 0-1

[Event "EYCC Open-U14 2019"]
[Site "Bratislava"]
[Date "2019.08.09"]
[Round "8.12"]
[White "Talibov, Shiroghlan"]
[Black "Levin, Guy"]
[Result "1/2-1/2"]
[ECO "A21"]
[WhiteElo "1882"]
[BlackElo "2005"]
[Annotator "NA"]
[PlyCount "75"]
[EventDate "2019.08.02"]
[EventType "swiss"]
[EventCountry "SVK"]
[SourceTitle "playchess.com"]
[Source "ChessBase"]
[SourceQuality "1"]
[TimeControl "40/5400+30:1800+30"]

1. c4 {[%emt 0:00:00]} e5 {[%emt 0:00:00]} 2. Nc3 {[%emt 0:00:00]} Bb4 {[%emt 0:00:00]} 3. Nf3 {[%emt 0:00:06]} Bxc3 {[%emt 0:02:51]} 4. dxc3 {[%emt 0:01:00]} Nc6 {[%emt 0:00:13]} 5. e4 {[%emt 0:00:53]} d6 {[%emt 0:01:40]} 6. Bd3 {[%emt 0:00:05]} Nge7 {[%emt 0:00:27]} 7. Qc2 {[%emt 0:00:53]} O-O {[%emt 0:00:41]} 8. Nh4 {[%emt 0:04:39]} Be6 {[%emt 0:03:13]} 9. h3 {[%emt 0:01:20]} Ng6 {[%emt 0:02:14]} 10. Nxg6 {[%emt 0:03:26]} fxg6 {[%emt 0:01:05]} 11. Be3 {[%emt 0:02:15]} Qe7 {[%emt 0:00:41]} 12. Qe2 {[%emt 0:03:44]} a5 {[%emt 0:02:20]} 13. a4 {[%emt 0:02:33]} Nd8 {[%emt 0:04:18]} 14. h4 {[%emt 0:02:23]} h6 {[%emt 0:00:42]} 15. g3 {[%emt 0:12:11]} Qd7 {[%emt 0:03:37]} 16. f3 {[%emt 0:04:30]} b6 17. b3 {[%emt 0:04:18]} Nb7 {[%emt 0:03:46]} 18. Bc2 {[%emt 0:01:49]} Nc5 {[%emt 0:01:40]} 19. O-O-O {[%emt 0:01:42]} Rf7 {[%emt 0:00:49]} 20. Qg2 {[%emt 0:02:54]} Raf8 {[%emt 0:00:41]} 21. f4 {[%emt 0:04:29]} Bg4 {[%emt 0:00:27]} 22. Rd5 {[%emt 0:01:12]} Ne6 {[%emt 0:12:42]} 23. h5 {[%emt 0:04:05]} exf4 {[%emt 0:02:57]} 24. hxg6 {[%emt 0:00:54]} fxe3 {[%emt 0:15:48]} 25. gxf7+ {[%emt 0:00:15]} Qxf7 {[%emt 0:00:58]} 26. Bd1 {[%emt 0:02:45]} Qf2 {[%emt 0:09:07]} 27. Qxf2 {[%emt 0:11:17]} exf2 {[%emt 0:00:12]} 28. Bxg4 {[%emt 0:00:19]} f1=Q+ {[%emt 0:00:11]} 29. Rxf1 {[%emt 0:00:05]} Rxf1+ {[%emt 0:00:09]} 30. Kb2 {[%emt 0:05:33]} Nc5 {[%emt 0:07:45]} 31. e5 {[%emt 0:02:32]} dxe5 {[%emt 0:05:18]} 32. b4 {[%emt 0:01:04]} axb4 {[%emt 0:01:06]} 33. cxb4 {[%emt 0:00:06]} Na6 {[%emt 0:00:05]} 34. b5 {[%emt 0:05:31]} Nc5 {[%emt 0:12:44]} 35. a5 {[%emt 0:04:19]} Rf2+ {[%emt 0:00:24]} 36. Kb1 {[%emt 0:02:47]} Rf1+ {[%emt 0:00:32]} 37. Kb2 {[%emt 0:00:42]} Rf2+ {[%emt 0:00:44]} 38. Kb1 1/2-1/2

[Event "EYCC Open-U14 2019"]
[Site "Bratislava"]
[Date "2019.08.09"]
[Round "8.13"]
[White "Borhy, Marcell"]
[Black "Luczak, Filip"]
[Result "1/2-1/2"]
[ECO "A04"]
[WhiteElo "2382"]
[BlackElo "2144"]
[Annotator "NA"]
[PlyCount "84"]
[EventDate "2019.08.02"]
[EventType "swiss"]
[EventCountry "SVK"]
[SourceTitle "playchess.com"]
[Source "ChessBase"]
[SourceQuality "1"]
[TimeControl "40/5400+30:1800+30"]

1. Nf3 {[%emt 0:00:00]} c5 {[%emt 0:00:00]} 2. g3 {[%emt 0:00:00]} Nc6 {[%emt 0:00:00]} 3. c4 {[%emt 0:00:50]} g6 {[%emt 0:00:00]} 4. Bg2 {[%emt 0:00:45]} Bg7 {[%emt 0:00:01]} 5. O-O {[%emt 0:01:35]} e5 {[%emt 0:01:38]} 6. Nc3 {[%emt 0:00:55]} Nge7 {[%emt 0:00:08]} 7. Ne1 {[%emt 0:04:32]} O-O {[%emt 0:01:44]} 8. Nc2 {[%emt 0:00:05]} a6 {[%emt 0:01:56]} 9. a3 {[%emt 0:00:24]} Rb8 {[%emt 0:09:47]} 10. b4 {[%emt 0:02:42]} cxb4 {[%emt 0:05:54]} 11. axb4 {[%emt 0:00:19]} b5 {[%emt 0:00:50]} 12. c5 {[%emt 0:01:10]} a5 {[%emt 0:04:19]} 13. Rb1 {[%emt 0:05:55]} a4 {[%emt 0:05:53]} 14. Ba3 {[%emt 0:25:02]} Nd4 {[%emt 0:18:07]} 15. Nxd4 {[%emt 0:11:37]} exd4 {[%emt 0:00:01]} 16. Ne4 {[%emt 0:00:27]} Nf5 {[%emt 0:00:54]} 17. d3 {[%emt 0:07:13]} Bb7 {[%emt 0:01:47]} 18. Bh3 {[%emt 0:03:17]} Ne7 {[%emt 0:03:30]} 19. Nd6 {[%emt 0:06:08]} Bc6 {[%emt 0:01:43]} 20. Qd2 {[%emt 0:00:15]} Nd5 {[%emt 0:11:56]} 21. Bg2 {[%emt 0:08:36]} Be5 {[%emt 0:06:37]} 22. Bb2 {[%emt 0:01:19]} f5 {[%emt 0:03:50]} 23. Bxd4 {[%emt 0:02:13]} Bxd4 {[%emt 0:01:45]} 24. Qa2 {[%emt 0:00:01]} Be5 {[%emt 0:04:54]} 25. Bxd5+ {[%emt 0:00:30]} Kg7 {[%emt 0:00:08]} 26. Nf7 {[%emt 0:03:23]} Qf6 {[%emt 0:03:14]} 27. Nxe5 {[%emt 0:00:28]} Qxe5 {[%emt 0:00:02]} 28. Bg2 {[%emt 0:03:01]} f4 {[%emt 0:01:27]} 29. Qb2 {[%emt 0:07:59]} Qxb2 {[%emt 0:00:27]} 30. Rxb2 {[%emt 0:00:01]} f3 {[%emt 0:00:25]} 31. exf3 {[%emt 0:00:33]} Bxf3 {[%emt 0:00:05]} 32. Re1 {[%emt 0:00:18]} Bxg2 {[%emt 0:00:38]} 33. Kxg2 {[%emt 0:00:01]} Rbe8 {[%emt 0:00:40]} 34. Re3 {[%emt 0:00:38]} Kf6 {[%emt 0:03:25]} 35. d4 {[%emt 0:03:05]} Rxe3 {[%emt 0:00:42]} 36. fxe3 {[%emt 0:00:01]} Ke6 {[%emt 0:00:08]} 37. e4 {[%emt 0:00:03]} g5 {[%emt 0:00:36]} 38. h3 {[%emt 0:01:37]} h5 {[%emt 0:00:08]} 39. Rc2 {[%emt 0:00:29]} g4 {[%emt 0:00:56]} 40. hxg4 {[%emt 0:00:00]} hxg4 {[%emt 0:00:00]} 41. c6 {[%emt 0:11:02]} Rc8 {[%emt 0:03:46]} 42. d5+ {[%emt 0:00:45]} Ke5 {[%emt 0:06:59]} 1/2-1/2

[Event "EYCC Open-U14 2019"]
[Site "Bratislava"]
[Date "2019.08.09"]
[Round "8.14"]
[White "Rozen, Eytan"]
[Black "Laptii, Nazar"]
[Result "1-0"]
[ECO "E68"]
[WhiteElo "2260"]
[BlackElo "2133"]
[Annotator "NA"]
[PlyCount "95"]
[EventDate "2019.08.02"]
[EventType "swiss"]
[EventCountry "SVK"]
[SourceTitle "playchess.com"]
[Source "ChessBase"]
[SourceQuality "1"]
[TimeControl "40/5400+30:1800+30"]

1. d4 {[%emt 0:00:00]} g6 {[%emt 0:00:00]} 2. c4 {[%emt 0:00:00]} Bg7 {[%emt 0:00:00]} 3. Nf3 {[%emt 0:00:00]} d6 {[%emt 0:00:00]} 4. g3 {[%emt 0:00:02]} Nf6 {[%emt 0:00:13]} 5. Bg2 {[%emt 0:00:03]} O-O {[%emt 0:00:08]} 6. O-O {[%emt 0:00:01]} Nbd7 {[%emt 0:00:07]} 7. Nc3 {[%emt 0:00:06]} e5 {[%emt 0:00:06]} 8. e4 {[%emt 0:00:03]} c6 {[%emt 0:01:06]} 9. b3 {[%emt 0:00:09]} Re8 {[%emt 0:02:53]} 10. Bb2 {[%emt 0:00:18]} a5 {[%emt 0:01:04]} 11. Re1 {[%emt 0:00:47]} exd4 {[%emt 0:01:36]} 12. Nxd4 {[%emt 0:00:09]} Nc5 {[%emt 0:00:11]} 13. f3 {[%emt 0:01:38]} Nfd7 {[%emt 0:13:26]} 14. Kh1 {[%emt 0:04:43]} Ne5 {[%emt 0:01:54]} 15. Bf1 {[%emt 0:00:10]} h5 {[%emt 0:02:48]} 16. Be2 {[%emt 0:02:22]} Bh3 {[%emt 0:02:44]} 17. f4 {[%emt 0:03:15]} Ng4 {[%emt 0:05:33]} 18. Bxg4 {[%emt 0:00:24]} Bxg4 {[%emt 0:00:07]} 19. Qd2 {[%emt 0:00:06]} Qf6 {[%emt 0:13:40]} 20. Nc2 {[%emt 0:02:31]} Bf3+ {[%emt 0:01:30]} 21. Kg1 {[%emt 0:00:03]} Qd8 {[%emt 0:02:09]} 22. e5 {[%emt 0:24:51]} dxe5 {[%emt 0:16:28]} 23. Qe3 {[%emt 0:01:18]} Nd3 {[%emt 0:04:11]} 24. Qxf3 {[%emt 0:00:22]} Nxb2 {[%emt 0:00:07]} 25. Rab1 {[%emt 0:02:06]} Nd3 {[%emt 0:02:06]} 26. Re3 {[%emt 0:00:28]} Nc5 {[%emt 0:09:47]} 27. Rbe1 {[%emt 0:01:24]} Qb6 {[%emt 0:03:19]} 28. Kh1 {[%emt 0:04:50]} Rad8 {[%emt 0:03:17]} 29. fxe5 {[%emt 0:01:28]} Rd2 {[%emt 0:00:29]} 30. R1e2 {[%emt 0:00:40]} Red8 {[%emt 0:00:21]} 31. Qf2 {[%emt 0:01:56]} Rxe2 {[%emt 0:05:39]} 32. Rxe2 {[%emt 0:00:01]} Nd7 {[%emt 0:02:24]} 33. Qxb6 {[%emt 0:00:37]} Nxb6 {[%emt 0:00:01]} 34. Ne4 {[%emt 0:00:56]} Rd1+ {[%emt 0:00:56]} 35. Kg2 {[%emt 0:00:21]} Nd7 {[%emt 0:00:35]} 36. Nd6 {[%emt 0:00:59]} Nc5 {[%emt 0:00:18]} 37. Ne1 {[%emt 0:02:17]} Bf8 {[%emt 0:03:28]} 38. Ne8 {[%emt 0:01:09]} Ne6 {[%emt 0:00:40]} 39. Nf6+ {[%emt 0:00:54]} Kg7 40. Nf3 {[%emt 0:00:00]} Bb4 {[%emt 0:00:00]} 41. h4 {[%emt 0:01:02]} b5 {[%emt 0:19:57]} 42. cxb5 {[%emt 0:02:29]} cxb5 {[%emt 0:00:04]} 43. Rc2 {[%emt 0:02:26]} Be7 {[%emt 0:03:06]} 44. Ng5 {[%emt 0:06:32]} Nd4 {[%emt 0:01:06]} 45. Ne8+ {[%emt 0:00:53]} Kf8 {[%emt 0:00:51]} 46. Rc8 {[%emt 0:00:10]} Bxg5 {[%emt 0:00:23]} 47. Nf6+ {[%emt 0:00:29]} Kg7 {[%emt 0:00:17]} 48. hxg5 {[%emt 0:00:06]} 1-0

[Event "EYCC Open-U14 2019"]
[Site "Bratislava"]
[Date "2019.08.09"]
[Round "8.15"]
[White "Sobek, Michal"]
[Black "Papadiamandis, Elliot"]
[Result "0-1"]
[ECO "B51"]
[WhiteElo "2101"]
[BlackElo "2202"]
[Annotator "NA"]
[PlyCount "90"]
[EventDate "2019.08.02"]
[EventType "swiss"]
[EventCountry "SVK"]
[SourceTitle "playchess.com"]
[Source "ChessBase"]
[SourceQuality "1"]
[TimeControl "40/5400+30:1800+30"]

1. e4 {[%emt 0:00:00]} c5 {[%emt 0:00:00]} 2. Nf3 {[%emt 0:00:00]} d6 {[%emt 0:00:35]} 3. Bb5+ {[%emt 0:00:03]} Nd7 {[%emt 0:00:50]} 4. c3 {[%emt 0:00:09]} Ngf6 {[%emt 0:00:42]} 5. Qe2 {[%emt 0:00:14]} a6 {[%emt 0:02:29]} 6. Ba4 {[%emt 0:00:06]} b5 {[%emt 0:02:11]} 7. Bc2 {[%emt 0:00:07]} Bb7 {[%emt 0:01:10]} 8. O-O {[%emt 0:00:43]} Rc8 {[%emt 0:00:09]} 9. d4 {[%emt 0:03:55]} cxd4 {[%emt 0:02:25]} 10. cxd4 {[%emt 0:01:39]} Rxc2 {[%emt 0:01:02]} 11. Qxc2 {[%emt 0:00:18]} Bxe4 {[%emt 0:00:31]} 12. Qe2 {[%emt 0:00:30]} Qa8 {[%emt 0:02:29]} 13. a4 {[%emt 0:21:21]} b4 {[%emt 0:14:38]} 14. a5 {[%emt 0:06:33]} e6 {[%emt 0:10:02]} 15. Bd2 {[%emt 0:18:53]} Qb7 {[%emt 0:02:34]} 16. Ra4 {[%emt 0:06:14]} d5 {[%emt 0:02:38]} 17. Rc1 {[%emt 0:01:48]} b3 {[%emt 0:16:25]} 18. Na3 {[%emt 0:15:08]} Bd6 {[%emt 0:03:21]} 19. Qe1 {[%emt 0:04:19]} O-O {[%emt 0:06:13]} 20. Bb4 {[%emt 0:01:56]} Qb8 {[%emt 0:06:31]} 21. Rc6 {[%emt 0:00:10]} Bxb4 {[%emt 0:00:36]} 22. Rxb4 {[%emt 0:00:23]} Qa8 {[%emt 0:02:25]} 23. Rc7 {[%emt 0:04:40]} Qd8 {[%emt 0:02:07]} 24. Rbb7 {[%emt 0:00:43]} Bxf3 {[%emt 0:03:35]} 25. gxf3 {[%emt 0:00:07]} Re8 {[%emt 0:02:15]} 26. Qe3 {[%emt 0:06:11]} e5 {[%emt 0:02:24]} 27. Qxb3 {[%emt 0:03:46]} exd4 {[%emt 0:04:30]} 28. Nc2 {[%emt 0:01:23]} Nh5 {[%emt 0:00:47]} 29. Qxd5 {[%emt 0:00:44]} d3 {[%emt 0:03:48]} 30. Ne3 {[%emt 0:02:11]} Ne5 {[%emt 0:03:23]} 31. Rd7 {[%emt 0:00:39]} Nxd7 {[%emt 0:00:49]} 32. Rxd7 {[%emt 0:00:22]} Qc8 {[%emt 0:00:31]} 33. Rxf7 {[%emt 0:00:25]} Qe6 {[%emt 0:00:14]} 34. Qxe6 {[%emt 0:00:22]} Rxe6 {[%emt 0:00:01]} 35. Rd7 {[%emt 0:00:18]} Nf4 {[%emt 0:00:11]} 36. Ng2 {[%emt 0:00:49]} Nh3+ {[%emt 0:00:31]} 37. Kh1 {[%emt 0:00:36]} Nxf2+ {[%emt 0:00:38]} 38. Kg1 {[%emt 0:00:03]} Nh3+ {[%emt 0:00:10]} 39. Kh1 {[%emt 0:00:16]} Re2 {[%emt 0:00:23]} 40. b4 {[%emt 0:00:00]} d2 {[%emt 0:00:00]} 41. Ne3 {[%emt 0:02:09]} Rxe3 {[%emt 0:04:46]} 42. Rxd2 {[%emt 0:00:19]} Nf4 {[%emt 0:00:58]} 43. Kg1 {[%emt 0:00:59]} Rxf3 {[%emt 0:02:48]} 44. Rb2 {[%emt 0:10:34]} Ra3 {[%emt 0:00:50]} 45. Rd2 {[%emt 0:03:01]} Nd3 {[%emt 0:01:56]} 0-1